[Event "XII Paracin Festival 2019"]
[Site "Paracin"]
[Date "2019.07.05"]
[Round "1.24"]
[White "Wadsworth, Matthew J"]
[Black "Iskos, Alexandros"]
[Result "1-0"]
[ECO "A05"]
[WhiteElo "2418"]
[BlackElo "2151"]
[Annotator "NA"]
[PlyCount "74"]
[EventDate "2019.07.05"]
[EventType "swiss"]
[EventCountry "SRB"]
[SourceTitle "playchess.com"]
[Source "ChessBase"]
[SourceQuality "1"]
[TimeControl "5400+30"]

1. Nf3 {[%emt 0:00:05]} Nf6 {[%emt 0:00:00]} 2. g3 {[%emt 0:00:18]} e6 {[%emt 0:00:23]} 3. Bg2 {[%emt 0:00:21]} d5 {[%emt 0:00:04]} 4. O-O {[%emt 0:00:18]} c5 {[%emt 0:00:11]} 5. c4 {[%emt 0:00:19]} dxc4 {[%emt 0:04:48]} 6. Na3 {[%emt 0:01:03]} Nc6 {[%emt 0:07:50]} 7. Nxc4 {[%emt 0:00:30]} Be7 {[%emt 0:03:12]} 8. a4 {[%emt 0:01:09]} O-O {[%emt 0:00:52]} 9. d3 {[%emt 0:01:43]} Nd5 {[%emt 0:01:58]} 10. Bd2 {[%emt 0:01:44]} Rb8 {[%emt 0:20:06]} 11. Qb3 {[%emt 0:04:49]} f6 {[%emt 0:05:50]} 12. Rfd1 {[%emt 0:06:39]} Kh8 {[%emt 0:00:12]} 13. e4 {[%emt 0:03:03]} Ndb4 {[%emt 0:03:07]} 14. Bxb4 {[%emt 0:01:27]} cxb4 {[%emt 0:04:34]} 15. d4 {[%emt 0:01:33]} Na5 {[%emt 0:01:56]} 16. Nxa5 {[%emt 0:01:57]} Qxa5 {[%emt 0:00:02]} 17. d5 {[%emt 0:03:30]} exd5 {[%emt 0:00:18]} 18. exd5 {[%emt 0:00:08]} Bd6 {[%emt 0:01:58]} 19. Nd4 {[%emt 0:02:22]} Bd7 {[%emt 0:04:04]} 20. Qd3 {[%emt 0:04:35]} Rbe8 {[%emt 0:08:11]} 21. b3 {[%emt 0:08:40]} a6 {[%emt 0:04:08]} 22. Rac1 {[%emt 0:04:11]} Rc8 {[%emt 0:13:09]} 23. Ne6 {[%emt 0:02:59]} Rfe8 {[%emt 0:03:24]} 24. Rxc8 {[%emt 0:01:09]} Rxc8 {[%emt 0:00:42]} 25. Be4 {[%emt 0:04:00]} Rc3 {[%emt 0:09:52]} 26. Qe2 {[%emt 0:01:27]} g6 {[%emt 0:01:10]} 27. Qg4 {[%emt 0:01:54]} Bxe6 {[%emt 0:00:29]} 28. dxe6 {[%emt 0:01:15]} Qc7 {[%emt 0:00:52]} 29. Qh4 {[%emt 0:00:41]} Kg7 {[%emt 0:00:18]} 30. Bd5 {[%emt 0:00:56]} Qe7 {[%emt 0:00:22]} 31. Qd4 {[%emt 0:02:18]} Rc7 {[%emt 0:00:27]} 32. Bc4 {[%emt 0:01:27]} Bc5 {[%emt 0:00:18]} 33. Qe4 {[%emt 0:00:16]} Bd6 {[%emt 0:00:51]} 34. h4 {[%emt 0:00:08]} Bc5 {[%emt 0:00:43]} 35. h5 {[%emt 0:00:02]} f5 {[%emt 0:00:07]} 36. Qe5+ {[%emt 0:00:05]} Kh6 {[%emt 0:00:20]} 37. hxg6 {[%emt 0:00:20]} Kxg6 {[%emt 0:01:42]} 1-0

[Event "XII Paracin Festival 2019"]
[Site "Paracin"]
[Date "2019.07.05"]
[Round "1.25"]
[White "Spirliadis, Achileas"]
[Black "Ratkovic, Miloje"]
[Result "1-0"]
[ECO "D21"]
[WhiteElo "2151"]
[BlackElo "2416"]
[Annotator "NA"]
[PlyCount "75"]
[EventDate "2019.07.05"]
[EventType "swiss"]
[EventCountry "SRB"]
[SourceTitle "playchess.com"]
[Source "ChessBase"]
[SourceQuality "1"]
[TimeControl "5400+30"]

1. d4 {[%emt 0:00:00]} d5 {[%emt 0:00:00]} 2. c4 {[%emt 0:00:00]} dxc4 {[%emt 0:00:18]} 3. Nf3 {[%emt 0:00:09]} a6 {[%emt 0:00:31]} 4. a4 {[%emt 0:01:42]} Nf6 {[%emt 0:01:05]} 5. e3 {[%emt 0:00:15]} Bg4 {[%emt 0:00:35]} 6. Bxc4 {[%emt 0:01:09]} e6 {[%emt 0:00:07]} 7. O-O {[%emt 0:04:48]} Nc6 {[%emt 0:00:22]} 8. h3 {[%emt 0:01:44]} Bh5 {[%emt 0:00:23]} 9. Nc3 {[%emt 0:06:30]} Bd6 {[%emt 0:00:55]} 10. Be2 {[%emt 0:05:21]} O-O {[%emt 0:00:20]} 11. Kh1 {[%emt 0:00:57]} Qe8 {[%emt 0:03:52]} 12. e4 {[%emt 0:06:15]} Rd8 {[%emt 0:05:28]} 13. Be3 {[%emt 0:05:26]} Bg6 {[%emt 0:06:54]} 14. e5 {[%emt 0:08:17]} Bxe5 {[%emt 0:03:24]} 15. Nxe5 {[%emt 0:00:18]} Nxe5 {[%emt 0:00:10]} 16. Qb3 {[%emt 0:00:17]} Nc6 {[%emt 0:07:30]} 17. Qxb7 {[%emt 0:00:46]} Nxd4 {[%emt 0:01:59]} 18. Bxa6 {[%emt 0:11:02]} Nc2 {[%emt 0:06:20]} 19. Bc5 {[%emt 0:03:28]} Nxa1 {[%emt 0:01:53]} 20. Rxa1 {[%emt 0:04:06]} Rb8 {[%emt 0:04:38]} 21. Qxc7 {[%emt 0:00:09]} Qd8 {[%emt 0:07:44]} 22. Qf4 {[%emt 0:04:26]} Re8 {[%emt 0:04:35]} 23. Bb5 {[%emt 0:01:17]} e5 {[%emt 0:00:59]} 24. Qe3 {[%emt 0:01:24]} Re6 {[%emt 0:01:32]} 25. Rd1 {[%emt 0:02:27]} Qc7 {[%emt 0:04:00]} 26. b4 {[%emt 0:00:15]} h6 27. a5 {[%emt 0:06:25]} Bc2 {[%emt 0:18:53]} 28. Rd2 {[%emt 0:05:08]} Bb3 {[%emt 0:00:16]} 29. Be2 {[%emt 0:01:55]} Qc8 {[%emt 0:04:27]} 30. b5 {[%emt 0:01:25]} Re8 {[%emt 0:05:03]} 31. a6 {[%emt 0:01:38]} e4 {[%emt 0:03:23]} 32. b6 {[%emt 0:01:55]} Nd7 {[%emt 0:01:24]} 33. b7 {[%emt 0:04:32]} Qxc5 {[%emt 0:01:23]} 34. Rxd7 {[%emt 0:00:08]} Qc6 {[%emt 0:01:30]} 35. Bb5 {[%emt 0:00:08]} Qf6 {[%emt 0:02:43]} 36. a7 {[%emt 0:00:16]} Be6 {[%emt 0:00:05]} 37. axb8=Q {[%emt 0:00:21]} Rxb8 {[%emt 0:00:06]} 38. Qg3 {[%emt 0:02:07]} 1-0

[Event "XII Paracin Festival 2019"]
[Site "Paracin"]
[Date "2019.07.05"]
[Round "1.26"]
[White "Janzelj, Tim"]
[Black "Dimitrijevic, Nenad"]
[Result "1-0"]
[ECO "A90"]
[WhiteElo "2416"]
[BlackElo "2150"]
[Annotator "NA RC"]
[PlyCount "200"]
[EventDate "2019.07.05"]
[EventType "swiss"]
[EventCountry "SRB"]
[SourceTitle "playchess.com"]
[Source "ChessBase"]
[SourceQuality "1"]
[TimeControl "5400+30"]

1. d4 {[%emt 0:00:00]} e6 {[%emt 0:00:00]} 2. c4 {[%emt 0:00:24]} f5 {[%emt 0:00:21]} 3. g3 {[%emt 0:00:27]} Nf6 {[%emt 0:00:08]} 4. Bg2 {[%emt 0:00:03]} c6 {[%emt 0:00:08]} 5. Nh3 {[%emt 0:01:01]} d5 {[%emt 0:00:20]} 6. O-O {[%emt 0:00:10]} Be7 {[%emt 0:01:39]} 7. Nd2 {[%emt 0:07:44]} O-O {[%emt 0:03:52]} 8. Nf4 {[%emt 0:06:04]} a5 {[%emt 0:04:59]} 9. Nf3 {[%emt 0:04:03]} Ne4 {[%emt 0:02:51]} 10. Ne5 {[%emt 0:02:15]} a4 {[%emt 0:03:16]} 11. Qc2 {[%emt 0:09:22]} g5 {[%emt 0:11:46]} 12. Nfd3 {[%emt 0:00:24]} Nd7 {[%emt 0:00:20]} 13. Kh1 {[%emt 0:09:00]} Nxe5 {[%emt 0:10:20]} 14. Nxe5 {[%emt 0:00:39]} Bf6 {[%emt 0:13:56]} 15. Be3 {[%emt 0:11:27]} Nd6 {[%emt 0:07:27]} 16. b3 {[%emt 0:02:27]} Qa5 {[%emt 0:03:30]} 17. Rab1 {[%emt 0:06:47]} axb3 {[%emt 0:06:58]} 18. axb3 {[%emt 0:00:03]} Qa2 {[%emt 0:00:22]} 19. Qc1 {[%emt 0:04:32]} Nf7 {[%emt 0:09:22]} 20. Nxf7 {[%emt 0:14:43]} Rxf7 {[%emt 0:00:39]} 21. cxd5 {[%emt 0:02:09]} cxd5 {[%emt 0:01:18]} 22. Bxg5 {[%emt 0:00:31]} Bxd4 {[%emt 0:00:27]} 23. Qf4 {[%emt 0:00:28]} Bg7 {[%emt 0:00:27]} 24. Bh6 {[%emt 0:02:53]} Bd7 {[%emt 0:04:06]} 25. Bxg7 {[%emt 0:00:17]} Rxg7 {[%emt 0:00:02]} 26. Qe5 {[%emt 0:01:01]} Qd2 {[%emt 0:00:48]} 27. Ra1 {[%emt 0:01:11]} Rc8 {[%emt 0:00:58]} 28. Ra7 {[%emt 0:03:00]} Qb4 {[%emt 0:01:33]} 29. Qa1 {[%emt 0:05:08]} Bc6 {[%emt 0:01:24]} 30. Ra8 {[%emt 0:01:09]} Rxa8 {[%emt 0:00:57]} 31. Qxa8+ {[%emt 0:00:01]} Kf7 {[%emt 0:00:05]} 32. Bf3 {[%emt 0:00:37]} Rg8 {[%emt 0:00:25]} 33. Qa1 {[%emt 0:00:04]} Ke7 {[%emt 0:00:31]} 34. Qe5 {[%emt 0:00:42]} Qd6 {[%emt 0:00:42]} 35. Qd4 {[%emt 0:00:02]} Kd7 {[%emt 0:01:25]} 36. b4 {[%emt 0:00:34]} e5 {[%emt 0:00:31]} 37. Qh4 {[%emt 0:00:02]} Qe7 {[%emt 0:00:27]} 38. Qh3 {[%emt 0:02:31]} Rf8 {[%emt 0:00:46]} 39. b5 {[%emt 0:00:37]} Bxb5 {[%emt 0:00:19]} 40. Bxd5 {[%emt 0:00:15]} Kc7 {[%emt 0:00:21]} 41. Rb1 {[%emt 0:01:36]} Ba6 {[%emt 0:00:02]} 42. Qh6 {[%emt 0:00:20]} Rf6 {[%emt 0:00:29]} 43. Qe3 {[%emt 0:00:40]} Kb8 {[%emt 0:00:38]} 44. f4 {[%emt 0:00:53]} Rd6 {[%emt 0:01:27]} 45. Bg2 {[%emt 0:01:11]} Re6 {[%emt 0:00:47]} 46. fxe5 {[%emt 0:01:30]} Rxe5 {[%emt 0:00:05]} 47. Qb6 {[%emt 0:00:16]} Re6 {[%emt 0:02:32]} 48. Qa5 {[%emt 0:00:02]} Qf6 {[%emt 0:01:15]} 49. Bf3 {[%emt 0:00:49]} Qe5 {[%emt 0:01:05]} 50. Qb4 {[%emt 0:01:40]} Qd6 {[%emt 0:01:46]} 51. Qb3 {[%emt 0:00:53]} Re7 {[%emt 0:00:22]} 52. Qc2 {[%emt 0:00:48]} f4 {[%emt 0:01:25]} 53. g4 {[%emt 0:00:26]} Ka7 {[%emt 0:00:44]} 54. Rd1 {[%emt 0:00:21]} Qe5 {[%emt 0:00:33]} 55. Qa4 {[%emt 0:00:31]} Rc7 {[%emt 0:00:51]} 56. Kg2 {[%emt 0:00:40]} Rc4 {[%emt 0:00:34]} 57. Qd7 {[%emt 0:00:28]} Rc2 {[%emt 0:00:28]} 58. Rd2 {[%emt 0:00:28]} Rxd2 {[%emt 0:01:09]} 59. Qxd2 {[%emt 0:00:02]} h6 {[%emt 0:00:19]} 60. Qb4 {[%emt 0:00:53]} Qg5 {[%emt 0:00:45]} 61. Qd4+ {[%emt 0:00:10]} Kb8 {[%emt 0:00:20]} 62. Qd6+ {[%emt 0:00:35]} Ka7 {[%emt 0:00:16]} 63. Kf1 {[%emt 0:00:42]} Bb5 {[%emt 0:01:23]} 64. h4 {[%emt 0:00:38]} Qxh4 {[%emt 0:00:37]} 65. Qc5+ {[%emt 0:00:14]} Ka6 {[%emt 0:00:11]} 66. Bxb7+ {[%emt 0:00:34]} Ka5 {[%emt 0:01:10]} 67. Qc7+ {[%emt 0:00:27]} Kb4 {[%emt 0:00:10]} 68. Qxf4+ {[%emt 0:00:03]} Kc5 {[%emt 0:00:13]} 69. Qe3+ {[%emt 0:00:56]} Kb4 {[%emt 0:00:07]} 70. Qf4+ {[%emt 0:00:33]} Kc5 {[%emt 0:00:20]} 71. Qe5+ {[%emt 0:00:02]} Kb6 {[%emt 0:00:13]} 72. Bf3 {[%emt 0:00:03]} Qh3+ {[%emt 0:01:38]} 73. Kg1 {[%emt 0:00:49]} Qh4 {[%emt 0:00:06]} 74. Kg2 {[%emt 0:00:14]} Qg5 {[%emt 0:00:33]} 75. Qd6+ {[%emt 0:00:49]} Ka5 {[%emt 0:00:06]} 76. Kf2 {[%emt 0:01:04]} Qh4+ {[%emt 0:00:20]} 77. Qg3 {[%emt 0:00:10]} Qg5 {[%emt 0:00:03]} 78. Qc7+ {[%emt 0:00:52]} Kb4 {[%emt 0:00:10]} 79. Qh2 {[%emt 0:00:39]} Qc5+ {[%emt 0:00:25]} 80. Kg2 {[%emt 0:00:06]} Qe3 {[%emt 0:00:12]} 81. Qd6+ {[%emt 0:00:19]} Ka5 {[%emt 0:00:29]} 82. Qd5 {[%emt 0:00:12]} Kb4 {[%emt 0:00:16]} 83. Qa2 {[%emt 0:01:18]} Bc4 {[%emt 0:00:17]} 84. Qb1+ {[%emt 0:00:20]} Kc3 {[%emt 0:00:26]} 85. Qe1+ {[%emt 0:00:33]} Kb3 {[%emt 0:01:27]} 86. Qf2 {[%emt 0:00:26]} Qg5 {[%emt 0:00:54]} 87. Qb6+ {[%emt 0:00:23]} Kc3 {[%emt 0:00:14]} 88. e3 {[%emt 0:00:31]} Bd3 {[%emt 0:00:18]} 89. Qd4+ {[%emt 0:00:26]} Kd2 {[%emt 0:00:19]} 90. Qf4 {[%emt 0:00:18]} Kc3 {[%emt 0:01:25]} 91. Kg3 {[%emt 0:00:29]} Qg7 {[%emt 0:01:17]} 92. e4 {[%emt 0:00:58]} Bc4 {[%emt 0:01:18]} 93. e5 {[%emt 0:00:23]} Qg5 {[%emt 0:01:06]} 94. Bg2 {[%emt 0:00:51]} Bb3 {[%emt 0:00:43]} 95. Be4 {[%emt 0:00:27]} Bc4 {[%emt 0:00:19]} 96. Bf5 {[%emt 0:00:14]} Qe7 {[%emt 0:00:50]} 97. e6 {[%emt 0:00:39]} Bd5 {[%emt 0:00:45]} 98. Qe3+ {[%emt 0:00:28]} Kb4 {[%emt 0:00:18]} 99. Qxh6 {[%emt 0:00:16]} Kc5 {[%emt 0:00:03]} 100. Qe3+ {[%emt 0:00:10]} Kd6 {[%emt 0:00:06]} 1-0

[Event "XII Paracin Festival 2019"]
[Site "Paracin"]
[Date "2019.07.05"]
[Round "1.27"]
[White "Pimpalkhare Vedant"]
[Black "Gadimbayli, Abdulla"]
[Result "1-0"]
[ECO "A05"]
[WhiteElo "2150"]
[BlackElo "2414"]
[Annotator "NA"]
[PlyCount "155"]
[EventDate "2019.07.05"]
[EventType "swiss"]
[EventCountry "SRB"]
[SourceTitle "playchess.com"]
[Source "ChessBase"]
[SourceQuality "1"]
[TimeControl "5400+30"]

1. Nf3 Nf6 2. c4 Nc6 3. Nc3 e6 4. a3 g6 5. e3 Bg7 6. Be2 O-O 7. O-O d5 8. d4 dxc4 9. Bxc4 b6 10. b4 Bb7 11. Bb2 Qe7 12. Qe2 Rad8 13. Rac1 Ba8 14. Rfd1 Nh5 15. d5 Ne5 16. Nxe5 Bxe5 17. dxe6 fxe6 18. Qg4 Kh8 19. Qxe6 Qg7 20. Qxe5 Qxe5 21. Na4 Qxb2 22. Nxb2 Nf6 23. Rxd8 Rxd8 24. Rd1 Re8 25. Na4 Ne4 26. Nb2 Nf6 27. Rd3 Kg7 28. f3 Bc6 29. Kf2 Bd7 30. Rc3 Re7 31. Nd3 g5 32. Bb3 Bf5 33. Ne1 Rd7 34. Ke2 Re7 35. Nc2 Bxc2 36. Rxc2 Ne8 37. g3 Nd6 38. Rd2 Kf6 39. Kf2 g4 40. Bd5 gxf3 41. Kxf3 Ke5 42. Bb3 c6 43. Rd4 Rd7 44. Rh4 Re7 45. Rh5+ Kf6 46. Rh6+ Ke5 47. Rh5+ Kf6 48. Bc2 Nf7 49. h4 h6 50. Kf4 Kg7 51. g4 Nd6 52. g5 hxg5+ 53. hxg5 Rf7+ 54. Ke5 Nc4+ 55. Ke6 Rf2 56. Rh7+ Kg8 57. Bg6 Nxe3 58. Rxa7 c5 59. bxc5 bxc5 60. Bh7+ Kh8 61. Be4 c4 62. Rc7 Rf8 63. g6 Kg8 64. a4 Re8+ 65. Kf6 Rf8+ 66. Ke6 Re8+ 67. Kf6 Rf8+ 68. Ke5 Rf1 69. a5 Ng4+ 70. Kd4 Rd1+ 71. Kc5 Nf6 72. Bc2 Rd2 73. Bb1 c3 74. a6 c2 75. Ba2+ Kf8 76. g7+ Ke8 77. Kb6 Nd7+ 78. Kb5 1-0

[Event "XII Paracin Festival 2019"]
[Site "Paracin"]
[Date "2019.07.05"]
[Round "1.28"]
[White "Djordjevic, Vuk"]
[Black "Risteski, Emil"]
[Result "1-0"]
[ECO "B23"]
[WhiteElo "2412"]
[BlackElo "2150"]
[Annotator "NA"]
[PlyCount "92"]
[EventDate "2019.07.05"]
[EventType "swiss"]
[EventCountry "SRB"]
[SourceTitle "playchess.com"]
[Source "ChessBase"]
[SourceQuality "1"]
[TimeControl "5400+30"]

1. e4 {[%emt 0:01:17]} c5 {[%emt 0:00:00]} 2. Ne2 {[%emt 0:01:11]} Nc6 {[%emt 0:00:06]} 3. Nbc3 {[%emt 0:00:05]} g6 {[%emt 0:01:18]} 4. g3 {[%emt 0:00:21]} Bg7 {[%emt 0:00:57]} 5. Bg2 {[%emt 0:00:15]} d6 {[%emt 0:00:28]} 6. d3 {[%emt 0:00:11]} Rb8 {[%emt 0:00:44]} 7. O-O {[%emt 0:00:18]} e6 {[%emt 0:01:54]} 8. Be3 {[%emt 0:02:35]} Nd4 {[%emt 0:00:24]} 9. Qd2 {[%emt 0:02:03]} Ne7 {[%emt 0:00:10]} 10. Rab1 {[%emt 0:02:15]} Nec6 {[%emt 0:04:18]} 11. Bh6 {[%emt 0:07:22]} O-O {[%emt 0:07:45]} 12. Bxg7 {[%emt 0:01:48]} Kxg7 {[%emt 0:00:43]} 13. a3 {[%emt 0:08:17]} b5 {[%emt 0:08:00]} 14. Nxd4 {[%emt 0:10:28]} Nxd4 {[%emt 0:01:18]} 15. Nd1 {[%emt 0:01:52]} b4 {[%emt 0:09:50]} 16. Ne3 {[%emt 0:08:46]} a5 {[%emt 0:08:00]} 17. f4 {[%emt 0:05:09]} f5 {[%emt 0:05:14]} 18. axb4 {[%emt 0:08:13]} cxb4 {[%emt 0:00:33]} 19. Nc4 {[%emt 0:01:56]} Qc7 {[%emt 0:05:15]} 20. exf5 {[%emt 0:03:14]} Qc5 {[%emt 0:05:29]} 21. Qf2 {[%emt 0:03:25]} gxf5 {[%emt 0:04:51]} 22. Nxa5 {[%emt 0:03:25]} Ba6 {[%emt 0:03:30]} 23. Nc6 {[%emt 0:03:44]} Nxc6 {[%emt 0:00:06]} 24. Qxc5 {[%emt 0:00:02]} dxc5 {[%emt 0:00:06]} 25. Bxc6 {[%emt 0:00:02]} b3 {[%emt 0:00:04]} 26. c4 {[%emt 0:00:25]} Rfd8 {[%emt 0:00:36]} 27. Rfd1 {[%emt 0:01:49]} Rd6 {[%emt 0:00:26]} 28. Bf3 {[%emt 0:00:07]} Rbd8 {[%emt 0:00:52]} 29. Be2 {[%emt 0:00:30]} Kf6 {[%emt 0:01:12]} 30. Re1 {[%emt 0:06:58]} h5 {[%emt 0:11:04]} 31. Kf2 {[%emt 0:01:52]} h4 {[%emt 0:00:40]} 32. gxh4 {[%emt 0:01:40]} Rd4 {[%emt 0:00:42]} 33. Ra1 {[%emt 0:00:18]} R8d6 {[%emt 0:03:46]} 34. Ke3 {[%emt 0:00:42]} e5 {[%emt 0:00:00]} 35. fxe5+ {[%emt 0:00:33]} Kxe5 {[%emt 0:00:06]} 36. Ra5 {[%emt 0:00:09]} Rxh4 {[%emt 0:04:32]} 37. Rxc5+ {[%emt 0:00:07]} Kf6 {[%emt 0:00:01]} 38. Rf1 {[%emt 0:00:57]} Re6+ {[%emt 0:00:03]} 39. Kd2 {[%emt 0:00:04]} f4 {[%emt 0:00:05]} 40. Rf2 {[%emt 0:00:15]} Re5 {[%emt 0:01:59]} 41. Rc6+ {[%emt 0:00:27]} Re6 {[%emt 0:00:00]} 42. Rxe6+ {[%emt 0:00:39]} Kxe6 {[%emt 0:00:02]} 43. Bf3 {[%emt 0:00:40]} Ke5 {[%emt 0:00:47]} 44. Kc3 {[%emt 0:00:05]} Rh3 {[%emt 0:00:30]} 45. d4+ Kf5 {[%emt 0:00:05]} 46. Kb4 {[%emt 0:00:14]} Bc8 1-0

[Event "XII Paracin Festival 2019"]
[Site "Paracin"]
[Date "2019.07.05"]
[Round "1.29"]
[White "Parnali, S Dharia"]
[Black "McPhillips, Joseph"]
[Result "0-1"]
[ECO "A40"]
[WhiteElo "2145"]
[BlackElo "2412"]
[Annotator "NA"]
[PlyCount "90"]
[EventDate "2019.07.05"]
[EventType "swiss"]
[EventCountry "SRB"]
[SourceTitle "playchess.com"]
[Source "ChessBase"]
[SourceQuality "1"]
[TimeControl "5400+30"]

1. d4 {[%emt 0:00:00]} e6 {[%emt 0:00:00]} 2. c4 {[%emt 0:01:28]} b6 {[%emt 0:00:00]} 3. Nc3 {[%emt 0:01:06]} Bb7 {[%emt 0:00:00]} 4. Nf3 {[%emt 0:00:28]} Bb4 {[%emt 0:00:19]} 5. g3 {[%emt 0:01:15]} Nf6 {[%emt 0:00:34]} 6. Bg2 {[%emt 0:00:14]} O-O {[%emt 0:00:04]} 7. O-O {[%emt 0:01:21]} Bxc3 {[%emt 0:00:05]} 8. bxc3 {[%emt 0:00:03]} Qc8 {[%emt 0:00:17]} 9. Bg5 {[%emt 0:05:17]} Ne4 {[%emt 0:01:35]} 10. Qd3 {[%emt 0:00:24]} d6 {[%emt 0:04:38]} 11. h4 {[%emt 0:02:09]} h6 {[%emt 0:02:34]} 12. Be3 {[%emt 0:03:55]} Nd7 {[%emt 0:01:45]} 13. Bh3 {[%emt 0:04:49]} f5 {[%emt 0:10:36]} 14. d5 {[%emt 0:18:21]} Ndc5 {[%emt 0:02:49]} 15. Bxc5 {[%emt 0:00:52]} Nxc5 {[%emt 0:01:09]} 16. Qc2 {[%emt 0:02:18]} exd5 {[%emt 0:00:49]} 17. Nd4 {[%emt 0:00:10]} dxc4 {[%emt 0:00:20]} 18. Bxf5 {[%emt 0:04:11]} Qe8 {[%emt 0:01:20]} 19. f3 {[%emt 0:09:19]} Qe3+ {[%emt 0:19:09]} 20. Kg2 {[%emt 0:02:07]} Bc8 {[%emt 0:00:22]} 21. Bh7+ {[%emt 0:06:00]} Kh8 {[%emt 0:00:02]} 22. Nb5 {[%emt 0:08:12]} Bd7 {[%emt 0:10:31]} 23. Nxc7 {[%emt 0:02:55]} Rac8 {[%emt 0:00:03]} 24. Nd5 {[%emt 0:00:14]} Qe6 {[%emt 0:00:04]} 25. Nf4 {[%emt 0:00:23]} Rxf4 {[%emt 0:00:14]} 26. gxf4 {[%emt 0:00:12]} Qh3+ {[%emt 0:00:20]} 27. Kf2 {[%emt 0:04:59]} Qxh4+ {[%emt 0:00:17]} 28. Ke3 {[%emt 0:00:55]} Re8+ {[%emt 0:00:22]} 29. Kd2 {[%emt 0:00:41]} Qxf4+ {[%emt 0:00:15]} 30. Ke1 {[%emt 0:00:23]} Ba4 {[%emt 0:00:19]} 31. Qb1 {[%emt 0:01:10]} Qe3 {[%emt 0:09:40]} 32. Rf2 {[%emt 0:00:07]} Qxc3+ {[%emt 0:00:59]} 33. Kf1 {[%emt 0:00:08]} Bd7 {[%emt 0:00:13]} 34. Bg6 {[%emt 0:01:37]} Re3 {[%emt 0:04:05]} 35. Qc1 {[%emt 0:01:01]} Bh3+ {[%emt 0:08:03]} 36. Kg1 {[%emt 0:00:21]} Qe5 {[%emt 0:00:02]} 37. Rh2 {[%emt 0:01:53]} Ne6 {[%emt 0:04:04]} 38. Be4 {[%emt 0:01:15]} Qd4 {[%emt 0:06:20]} 39. Kh1 {[%emt 0:00:57]} Nf4 {[%emt 0:01:24]} 40. Qd1 {[%emt 0:01:11]} Rxe4 {[%emt 0:00:08]} 41. fxe4 {[%emt 0:01:40]} Qxe4+ {[%emt 0:00:07]} 42. Kg1 {[%emt 0:00:07]} Qe3+ {[%emt 0:00:12]} 43. Kh1 {[%emt 0:00:23]} Qe4+ {[%emt 0:00:03]} 44. Kg1 {[%emt 0:00:08]} Qe3+ {[%emt 0:00:01]} 45. Kh1 {[%emt 0:00:02]} Bc8 {[%emt 0:02:35]} 0-1

[Event "XII Paracin Festival 2019"]
[Site "Paracin"]
[Date "2019.07.05"]
[Round "1.30"]
[White "Ratkovic, Milovan"]
[Black "Brankovic, Vladislav"]
[Result "1/2-1/2"]
[ECO "D00"]
[WhiteElo "2407"]
[BlackElo "2144"]
[Annotator "NA"]
[PlyCount "40"]
[EventDate "2019.07.05"]
[EventType "swiss"]
[EventCountry "SRB"]
[SourceTitle "playchess.com"]
[Source "ChessBase"]
[SourceQuality "1"]
[TimeControl "5400+30"]

1. d4 {[%emt 0:00:00]} d5 {[%emt 0:00:00]} 2. Bg5 {[%emt 0:00:00]} Nd7 {[%emt 0:00:11]} 3. e3 {[%emt 0:00:17]} Ngf6 {[%emt 0:00:21]} 4. Nd2 {[%emt 0:00:16]} e6 {[%emt 0:02:41]} 5. Ngf3 {[%emt 0:00:24]} Bd6 {[%emt 0:00:24]} 6. Bd3 {[%emt 0:02:08]} c6 {[%emt 0:05:39]} 7. O-O {[%emt 0:04:51]} O-O {[%emt 0:00:51]} 8. c4 {[%emt 0:01:00]} a6 {[%emt 0:10:08]} 9. e4 {[%emt 0:04:11]} dxe4 {[%emt 0:00:47]} 10. Nxe4 {[%emt 0:00:09]} Be7 {[%emt 0:00:02]} 11. Qe2 {[%emt 0:02:27]} Re8 {[%emt 0:02:51]} 12. Rad1 {[%emt 0:02:08]} Nxe4 {[%emt 0:04:14]} 13. Qxe4 {[%emt 0:00:31]} Bxg5 {[%emt 0:02:09]} 14. Qxh7+ {[%emt 0:02:33]} Kf8 {[%emt 0:00:35]} 15. Qh8+ {[%emt 0:24:50]} Ke7 {[%emt 0:00:07]} 16. Qh5 {[%emt 0:00:06]} Bf6 {[%emt 0:05:02]} 17. Rfe1 {[%emt 0:01:42]} Rh8 {[%emt 0:00:08]} 18. Qg4 {[%emt 0:00:05]} Kf8 {[%emt 0:00:06]} 19. Qg3 {[%emt 0:00:14]} g6 {[%emt 0:00:15]} 20. d5 {[%emt 0:00:15]} cxd5 {[%emt 0:00:07]} 1/2-1/2

[Event "XII Paracin Festival 2019"]
[Site "Paracin"]
[Date "2019.07.06"]
[Round "2.1"]
[White "Ivanisevic, Ivan"]
[Black "O`Donnell, Conor"]
[Result "1-0"]
[ECO "D35"]
[WhiteElo "2612"]
[BlackElo "2341"]
[Annotator "RC"]
[PlyCount "77"]
[EventDate "2019.07.05"]
[EventType "swiss"]
[EventCountry "SRB"]
[SourceTitle "playchess.com"]
[Source "ChessBase"]
[SourceQuality "1"]
[TimeControl "5400+30"]

1. d4 {[%emt 0:00:00]} d5 {[%emt 0:02:28]} 2. c4 {[%emt 0:00:00]} e6 {[%emt 0:00:07]} 3. Nc3 {[%emt 0:00:00]} Nf6 {[%emt 0:00:25]} 4. cxd5 {[%emt 0:00:00]} Nxd5 {[%emt 0:00:11]} 5. Nf3 {[%emt 0:00:10]} c5 {[%emt 0:00:21]} 6. g3 {[%emt 0:00:36]} Nxc3 {[%emt 0:00:29]} 7. bxc3 {[%emt 0:00:06]} cxd4 {[%emt 0:00:05]} 8. cxd4 {[%emt 0:00:25]} Bb4+ {[%emt 0:00:07]} 9. Bd2 {[%emt 0:00:08]} Bxd2+ {[%emt 0:00:05]} 10. Qxd2 {[%emt 0:00:07]} b6 {[%emt 0:00:27]} 11. Bg2 {[%emt 0:00:56]} Bb7 {[%emt 0:00:22]} 12. O-O {[%emt 0:00:08]} O-O {[%emt 0:09:34]} 13. Rfe1 {[%emt 0:00:10]} Be4 {[%emt 0:04:33]} 14. Qf4 {[%emt 0:18:27]} Qd5 {[%emt 0:01:19]} 15. Rac1 {[%emt 0:00:26]} Nd7 {[%emt 0:06:59]} 16. h4 {[%emt 0:02:46]} Rad8 {[%emt 0:16:25]} 17. Rc7 {[%emt 0:06:55]} a5 {[%emt 0:09:46]} 18. g4 {[%emt 0:15:16]} Nf6 {[%emt 0:04:24]} 19. h5 {[%emt 0:03:34]} Qd6 {[%emt 0:05:28]} 20. Qxd6 {[%emt 0:05:44]} Rxd6 {[%emt 0:00:27]} 21. g5 {[%emt 0:13:12]} Nxh5 {[%emt 0:01:10]} 22. e3 {[%emt 0:00:07]} b5 {[%emt 0:07:01]} 23. Rec1 {[%emt 0:01:35]} Ra6 {[%emt 0:04:45]} 24. Ne5 {[%emt 0:00:54]} Bxg2 {[%emt 0:01:06]} 25. Kxg2 {[%emt 0:00:06]} f6 {[%emt 0:03:41]} 26. Nd7 {[%emt 0:01:55]} Rfa8 {[%emt 0:01:20]} 27. Nc5 {[%emt 0:08:42]} Rb6 {[%emt 0:05:01]} 28. Rh1 {[%emt 0:00:27]} g6 {[%emt 0:01:17]} 29. Nd7 {[%emt 0:01:22]} Rba6 {[%emt 0:02:04]} 30. Nxf6+ {[%emt 0:01:15]} Nxf6 {[%emt 0:00:13]} 31. gxf6 {[%emt 0:00:05]} h5 {[%emt 0:04:46]} 32. Rg7+ {[%emt 0:01:51]} Kf8 {[%emt 0:00:02]} 33. Kf3 {[%emt 0:00:18]} Rc8 {[%emt 0:02:57]} 34. Rxg6 {[%emt 0:00:57]} Kf7 {[%emt 0:00:44]} 35. Rh6 {[%emt 0:00:12]} b4 {[%emt 0:02:57]} 36. Rg1 {[%emt 0:00:37]} Rg8 {[%emt 0:02:01]} 37. Rh7+ {[%emt 0:00:07]} Kf8 {[%emt 0:00:02]} 38. Rc1 {[%emt 0:00:07]} Ra8 {[%emt 0:00:18]} 39. f7 {[%emt 0:00:51]} 1-0